bitfinex/quotes_BTCUSD_20251021
["timestamp","ask_amount","ask_price","bid_price","bid_amount"]
[1761072902885,0.0001871,112090.0,112080.0,1.23464254]
[1761072903660,0.0001871,112090.0,112080.0,1.20256895]
[1761072904098,0.01809353,112090.0,112080.0,1.20256895]
[1761072904294,0.0001871,112090.0,112080.0,1.20252895]
[1761072905136,0.0001871,112090.0,112080.0,1.20352895]
[1761072905374,0.0001871,112090.0,112080.0,1.20452895]
[1761072906969,0.0001871,112090.0,112080.0,0.79405596]
[1761072907171,0.0001871,112090.0,112080.0,0.38358297]
[1761072908650,0.0001871,112090.0,112080.0,0.79205596]
[1761072908848,0.0001871,112090.0,112080.0,0.79405596]
[1761072911211,0.0001871,112090.0,112080.0,1.20452895]
[1761072911721,0.0001871,112090.0,112080.0,0.38358297]
[1761072911916,0.0001871,112090.0,112080.0,0.79405596]
[1761072912767,0.0001871,112090.0,112080.0,0.38358297]
[1761072914008,0.0001871,112090.0,112080.0,0.79405596]
[1761072916351,0.0001871,112090.0,112080.0,1.20452895]
[1761072918941,0.0001871,112090.0,112080.0,1.68325781]
[1761072919161,0.0001871,112090.0,112080.0,2.02325781]
[1761072919348,0.0001871,112090.0,112080.0,1.66089521]
[1761072920362,0.0001871,112090.0,112080.0,1.65989521]
[1761072920567,0.0001871,112090.0,112080.0,1.65889521]
[1761072920801,0.0001871,112090.0,112080.0,1.66289521]
[1761072921292,0.0001871,112090.0,112080.0,2.0733682]
[1761072921489,0.0001871,112090.0,112080.0,2.04129461]
[1761072921982,0.0030543,112100.0,112080.0,5.616556]
[1761072921983,5.111e-05,112100.0,112080.0,5.616556]
[1761072922181,0.01865361,112160.0,112150.0,0.17833259]
[1761072922398,0.027462,112160.0,112150.0,0.3814316]
[1761072922610,0.019144,112160.0,112150.0,0.3814316]
[1761072923036,0.02115137,112160.0,112150.0,0.3814316]
[1761072924420,0.00289776,112160.0,112150.0,0.3814316]
[1761072924641,0.00289776,112160.0,112150.0,0.20309901]
[1761072924843,0.00289776,112160.0,112150.0,0.3814316]
[1761072935243,0.18121445,112160.0,112150.0,0.11328]
[1761072935502,0.25303544,112160.0,112150.0,0.11328]
[1761072936076,0.07471875,112160.0,112150.0,0.29161259]
[1761072936277,0.25303544,112160.0,112150.0,0.11328]
[1761072937314,0.25303544,112160.0,112150.0,0.29161259]
[1761072937513,0.25303544,112160.0,112150.0,0.11328]
[1761072937811,0.59303544,112160.0,112150.0,0.11328]
[1761072938621,0.31019549,112170.0,112150.0,0.29161259]
[1761072938871,0.19708298,112170.0,112150.0,0.29161259]
[1761072939075,0.17831669,112160.0,112150.0,0.11328]
[1761072939274,0.19708298,112170.0,112150.0,0.13111325]
[1761072939499,0.19708298,112170.0,112150.0,0.30944534]
[1761072939841,0.19708298,112170.0,112150.0,0.29161209]
[1761072940096,0.19708298,112170.0,112160.0,0.01783166]
[1761072940722,0.19741743,112170.0,112160.0,0.01783166]
[1761072940934,0.01911602,112170.0,112160.0,0.19614835]
[1761072942231,0.22307534,112170.0,112160.0,0.01783166]
[1761072943371,0.22307534,112170.0,112160.0,0.19614835]
[1761072943819,0.22307534,112170.0,112160.0,0.01783166]
[1761072944219,0.22307534,112170.0,112160.0,0.19614835]
[1761072944453,0.22311534,112170.0,112160.0,0.19614835]
[1761072945025,0.22311534,112170.0,112160.0,0.01783166]
[1761072945223,0.22311534,112170.0,112160.0,0.04333166]
[1761072947124,0.22311534,112170.0,112160.0,0.22164835]
[1761072947324,0.22311534,112170.0,112160.0,0.20381669]
[1761072947539,0.01915602,112170.0,112160.0,0.20381669]
[1761072948096,0.01915602,112170.0,112160.0,0.2936357]
[1761072950529,0.00086194,112170.0,112160.0,0.2936357]
[1761072957220,0.00086194,112170.0,112160.0,0.11531901]
[1761072957577,0.00086194,112170.0,112160.0,0.2936357]
[1761072958448,0.17916273,112170.0,112160.0,0.2936357]
[1761072959245,0.00086194,112170.0,112160.0,0.2936357]
[1761072972312,0.17916273,112170.0,112160.0,0.11531901]
[1761072972523,0.2244099,112170.0,112160.0,0.11531901]
[1761072972689,0.2244099,112170.0,112160.0,0.2936357]
[1761072972888,0.04610911,112170.0,112160.0,0.2936357]
[1761072973149,0.00086194,112170.0,112160.0,0.2936357]
[1761072974893,0.17916273,112170.0,112160.0,0.2936357]
[1761072975313,0.00086194,112170.0,112160.0,0.2936357]
[1761072979923,0.17916273,112170.0,112160.0,0.2936357]
[1761072980115,0.2244099,112170.0,112160.0,0.13858]
[1761072980515,0.25121929,112170.0,112160.0,0.13858]
[1761072981143,0.25121929,112170.0,112160.0,0.0255]
[1761072981603,0.59121929,112170.0,112160.0,0.0255]
[1761072984666,0.70429929,112170.0,112160.0,0.0255]
[1761072988515,0.67798212,112170.0,112160.0,0.0255]
[1761072988660,0.56490212,112170.0,112160.0,0.0255]
[1761072990001,0.56494212,112170.0,112160.0,0.0255]
[1761072999810,0.5418198,112170.0,112160.0,0.0255]
[1761073000672,0.63163881,112170.0,112160.0,0.0255]
[1761073001047,0.72145782,112170.0,112160.0,0.0255]
[1761073001253,0.74555276,112170.0,112160.0,0.0255]
[1761073001664,0.72145782,112170.0,112160.0,0.0255]
[1761073006192,0.72245782,112170.0,112160.0,0.0255]
[1761073006398,0.72345782,112170.0,112160.0,0.0255]
[1761073007439,0.74755276,112170.0,112160.0,0.0255]
[1761073007620,0.80763859,112170.0,112160.0,0.0255]
[1761073008377,0.7596401,112170.0,112160.0,0.0255]
[1761073009756,0.78354365,112170.0,112160.0,0.0255]
[1761073017851,0.79752722,112170.0,112160.0,0.0255]
[1761073018182,0.78354365,112170.0,112160.0,0.0255]
[1761073020230,0.89658365,112170.0,112160.0,0.0255]
[1761073024266,0.92842012,112170.0,112160.0,0.0255]
[1761073029213,0.90451657,112170.0,112160.0,0.0255]
[1761073031224,0.75529429,112170.0,112160.0,0.0255]
[1761073031350,0.34092084,112170.0,112160.0,0.0255]
[1761073031574,0.3168198,112170.0,112160.0,0.0255]
[1761073031794,0.6568198,112170.0,112160.0,0.0255]
[1761073031994,0.65227079,112170.0,112160.0,0.0255]
[1761073032162,0.65127079,112170.0,112160.0,0.0255]
[1761073032364,0.67708426,112170.0,112160.0,0.0255]
[1761073033194,0.76690327,112170.0,112160.0,0.0255]
[1761073034383,0.67708426,112170.0,112160.0,0.0255]
[1761073034683,0.19727079,112170.0,112160.0,0.20381669]
[1761073036918,0.01897,112170.0,112160.0,0.70348619]
[1761073037125,0.01897,112170.0,112160.0,0.2936357]
[1761073037258,0.19727079,112170.0,112160.0,0.11531901]
[1761073037461,0.23914803,112170.0,112160.0,0.0255]
[1761073038290,0.01897,112170.0,112160.0,0.63149884]
[1761073038529,0.19727079,112170.0,112160.0,0.20381669]
[1761073038684,0.01897,112170.0,112160.0,0.20381669]
[1761073039220,0.01897,112170.0,112160.0,0.70348619]
[1761073039448,4e-05,112170.0,112160.0,1.22629668]
[1761073040414,4e-05,112170.0,112160.0,0.81644619]
[1761073040863,4e-05,112170.0,112160.0,0.4065957]
[1761073041052,4e-05,112170.0,112160.0,1.22629668]
[1761073041873,0.34895265,112200.0,112190.0,0.178269]
[1761073042018,0.52723374,112200.0,112190.0,0.0178269]
[1761073042466,0.19324622,112200.0,112190.0,0.6779385]
[1761073042669,0.19324622,112200.0,112190.0,0.26808801]
[1761073042670,0.19424924,112200.0,112190.0,0.26808801]
[1761073043087,0.01599613,112200.0,112190.0,0.26808801]
[1761073043504,0.21371875,112200.0,112190.0,0.08981901]
[1761073043655,0.19424924,112200.0,112190.0,0.28591491]
[1761073043857,0.19424924,112200.0,112190.0,0.26808801]
[1761073044697,0.01599613,112200.0,112190.0,0.26808801]
[1761073045977,0.19424924,112200.0,112190.0,0.26808801]
[1761073047031,0.01599613,112200.0,112190.0,0.26808801]
[1761073050542,0.00104302,112200.0,112190.0,0.6779385]
[1761073051360,0.00104302,112200.0,112190.0,0.26808801]
[1761073051559,0.00104302,112200.0,112190.0,0.6779385]
[1761073052622,0.00104302,112200.0,112190.0,0.26808801]
[1761073053971,0.19361847,112210.0,112190.0,0.26311499]
[1761073054197,0.23186759,112210.0,112200.0,0.30899842]
[1761073054423,0.23186759,112210.0,112200.0,0.29117311]
[1761073054847,0.23220185,112210.0,112200.0,0.29117311]
[1761073055055,0.23220185,112210.0,112200.0,0.11292]
[1761073055261,0.23220185,112210.0,112200.0,0.13074531]
[1761073056134,0.17825311,112200.0,112190.0,0.19776599]
[1761073056341,0.17825311,112200.0,112190.0,0.37603499]
[1761073056548,0.21929861,112200.0,112190.0,0.37603499]
[1761073057230,0.17825311,112200.0,112190.0,0.37603499]
[1761073057581,0.17825311,112200.0,112190.0,0.08484599]
[1761073057817,0.17825311,112200.0,112190.0,0.28094189]
[1761073058043,0.17825311,112200.0,112190.0,0.26311499]
[1761073062138,0.17825311,112200.0,112190.0,0.08484599]
[1761073062352,0.17825311,112200.0,112190.0,0.28094189]
[1761073062560,0.21333596,112200.0,112190.0,0.26311499]
[1761073063301,0.21333596,112200.0,112190.0,0.08484599]
[1761073063530,0.21333596,112200.0,112190.0,0.10267289]
[1761073065294,0.17825311,112200.0,112190.0,0.10267289]
[1761073066372,0.17825311,112200.0,112190.0,0.28094189]
[1761073066715,0.17825311,112200.0,112190.0,0.26311499]
[1761073066955,0.17825311,112200.0,112190.0,0.08484599]
[1761073067175,0.178269,112190.0,112180.0,0.00104376]
[1761073067395,0.66680121,112190.0,112180.0,0.00104376]
[1761073067609,0.80935891,112190.0,112180.0,0.00104376]
[1761073067823,0.83345995,112190.0,112180.0,0.00104376]
[1761073069037,0.83445995,112190.0,112180.0,0.00104376]
[1761073069232,0.81135891,112190.0,112180.0,0.00104376]
[1761073072337,0.81135891,112190.0,112180.0,1e-08]
[1761073072554,0.87205347,112190.0,112180.0,1e-08]
[1761073072775,3.92982007,112190.0,112180.0,1e-08]
[1761073073436,3.8979836,112190.0,112180.0,1e-08]
[1761073074838,3.87205347,112190.0,112180.0,1e-08]
[1761073076458,3.8457121,112190.0,112180.0,1e-08]
[1761073076660,3.67254878,112190.0,112180.0,1e-08]
[1761073076875,3.78542878,112190.0,112180.0,1e-08]
[1761073078222,3.79941015,112190.0,112180.0,1e-08]
[1761073078614,3.78542878,112190.0,112180.0,1e-08]
[1761073079721,0.67254878,112190.0,112180.0,1e-08]
[1761073079934,0.78542878,112190.0,112180.0,1e-08]
[1761073084264,0.67254878,112190.0,112180.0,1e-08]
[1761073084577,0.78542878,112190.0,112180.0,1e-08]
[1761073089959,0.60416526,112190.0,112180.0,1e-08]
[1761073090168,0.78243426,112190.0,112180.0,1e-08]
[1761073091632,0.65995756,112190.0,112180.0,0.1782849]
[1761073091758,0.633149,112190.0,112180.0,0.1782849]
[1761073092720,0.633149,112190.0,112180.0,1e-08]
[1761073092858,0.633149,112190.0,112180.0,0.1782849]
[1761073093065,0.633149,112190.0,112180.0,1e-08]
[1761073093265,0.71428921,112190.0,112180.0,1e-08]
[1761073095857,0.74021934,112190.0,112180.0,1e-08]
[1761073097504,0.71428921,112190.0,112180.0,1e-08]
[1761073100883,0.633149,112190.0,112180.0,0.1782849]
[1761073101752,0.633149,112190.0,112180.0,1e-08]
[1761073103189,0.633149,112190.0,112180.0,0.1782849]
[1761073103415,0.342,112190.0,112180.0,0.1782849]
[1761073103606,0.520269,112190.0,112180.0,0.1782849]
[1761073104386,0.341,112190.0,112180.0,0.1782849]
[1761073104558,0.34,112190.0,112180.0,0.1782849]
[1761073104776,0.518269,112190.0,112180.0,0.1782849]
[1761073105828,0.34,112190.0,112180.0,0.1782849]
[1761073106463,0.518269,112190.0,112180.0,0.1782849]
[1761073107075,0.59920921,112190.0,112180.0,0.1782849]
[1761073107456,0.59920921,112190.0,112180.0,1e-08]
[1761073109999,0.518269,112190.0,112180.0,0.1782849]
[1761073110357,0.518269,112190.0,112180.0,1e-08]
[1761073110558,0.518269,112190.0,112180.0,0.1782849]
[1761073113774,0.178269,112190.0,112180.0,0.1782849]
[1761073115417,0.29113311,112200.0,112180.0,0.1782849]
[1761073115642,0.3807679,112200.0,112180.0,0.1782849]
[1761073115836,0.178269,112190.0,112180.0,0.1782849]
[1761073117354,0.3807679,112200.0,112180.0,0.1782849]
[1761073117754,0.178269,112190.0,112180.0,0.1782849]
[1761073122995,0.29113311,112200.0,112180.0,0.1782849]
[1761073123701,0.178269,112190.0,112180.0,0.1782849]
[1761073126215,0.178269,112190.0,112180.0,1e-08]
[1761073127421,0.54235415,112200.0,112180.0,0.1782849]
[1761073127619,0.0863059,112200.0,112190.0,0.178269]
[1761073127823,0.12866146,112210.0,112200.0,0.17825311]
[1761073128020,0.01586146,112210.0,112200.0,0.17825311]
[1761073128397,0.01586146,112210.0,112200.0,0.19607842]
[1761073128789,0.01586146,112210.0,112200.0,0.29105311]
[1761073128989,0.01586146,112210.0,112200.0,0.38087212]
[1761073129725,0.01586146,112210.0,112200.0,0.37987212]
[1761073132088,0.01586146,112210.0,112200.0,0.37186722]
[1761073133591,0.03528986,112210.0,112200.0,0.37186722]
[1761073134230,0.01586146,112210.0,112200.0,0.37186722]
[1761073136327,0.00088118,112210.0,112200.0,1.19121096]
[1761073136567,0.00088118,112210.0,112200.0,0.78153909]
[1761073137765,0.00088118,112210.0,112200.0,0.78353909]
[1761073139008,0.00088118,112210.0,112200.0,1.19321096]
[1761073140535,0.00088118,112210.0,112200.0,0.78353909]
[1761073140757,0.00088118,112210.0,112200.0,0.93233909]
[1761073141383,0.00088118,112210.0,112200.0,1.19321096]
[1761073141785,0.00088118,112210.0,112200.0,1.25338893]
[1761073142156,0.00088118,112210.0,112200.0,2.04505489]
[1761073142396,0.00088118,112210.0,112200.0,1.6493785]
[1761073142708,0.00088118,112210.0,112200.0,2.05905037]
[1761073142960,0.00088118,112210.0,112200.0,2.02605627]
[1761073143163,0.00088118,112210.0,112200.0,1.6163844]
[1761073143368,0.00088118,112210.0,112200.0,1.64817916]
[1761073143888,0.00088118,112210.0,112200.0,1.64917916]
[1761073144313,0.00088118,112210.0,112200.0,1.64817916]
[1761073144517,0.00088118,112210.0,112200.0,1.601188]
[1761073146470,0.00088118,112210.0,112200.0,1.62502143]
[1761073147238,0.00088118,112210.0,112200.0,1.77382143]
[1761073150817,0.00088118,112210.0,112200.0,0.95447769]
[1761073151018,0.00088118,112210.0,112200.0,0.26106722]
[1761073151247,0.00088118,112210.0,112200.0,0.38279212]
[1761073151447,0.00088118,112210.0,112200.0,0.20453901]
[1761073151448,0.17911841,112210.0,112200.0,0.20453901]
[1761073151656,0.21487246,112210.0,112200.0,0.20453901]
[1761073152137,0.21487246,112210.0,112200.0,0.20353901]
[1761073152713,0.21487246,112210.0,112200.0,0.38179212]
[1761073153027,0.21487246,112210.0,112200.0,0.38079212]
[1761073153236,0.17911841,112210.0,112200.0,0.38079212]
[1761073153443,0.00088118,112210.0,112200.0,0.38079212]
[1761073153639,0.17911841,112210.0,112200.0,0.38079212]
[1761073155402,0.00088118,112210.0,112200.0,0.38079212]
[1761073155869,0.17911841,112210.0,112200.0,0.38079212]
[1761073156295,0.21487246,112210.0,112200.0,0.38079212]
[1761073159751,0.17911841,112210.0,112200.0,0.38079212]
[1761073162095,0.17911841,112210.0,112200.0,0.40629212]
[1761073175718,0.17911841,112210.0,112200.0,0.0255]
[1761073200297,0.60893742,112210.0,112200.0,0.0255]
[1761073200516,0.68530996,112210.0,112200.0,0.0255]
[1761073200733,0.80193451,112210.0,112200.0,0.0255]
[1761073200964,0.80742961,112210.0,112200.0,0.0255]
[1761073201149,0.78149948,112210.0,112200.0,0.0255]
[1761073201357,0.74966301,112210.0,112200.0,0.0255]
[1761073201562,0.54592395,112210.0,112200.0,0.0255]
[1761073201911,0.00088118,112210.0,112200.0,0.20375311]
[1761073202046,0.18011841,112210.0,112200.0,0.20375311]
[1761073202246,0.00188118,112210.0,112200.0,0.20375311]
[1761073202651,0.18011841,112210.0,112200.0,0.20375311]
[1761073202962,0.22892037,112210.0,112200.0,0.0255]
[1761073203656,0.22892037,112210.0,112200.0,0.20375311]
[1761073204192,0.17911841,112210.0,112200.0,0.20375311]
[1761073205285,0.00088118,112210.0,112200.0,0.20375311]
[1761073205485,0.17911841,112210.0,112200.0,0.20375311]
[1761073206037,0.17911841,112210.0,112200.0,0.31643311]
[1761073206598,0.00088118,112210.0,112200.0,0.31643311]
[1761073207188,0.28085668,112220.0,112200.0,0.13818]
[1761073207503,0.17823723,112210.0,112200.0,0.31643311]
[1761073209186,0.36178748,112220.0,112200.0,0.31643311]
[1761073209348,0.17823723,112210.0,112200.0,0.31643311]
[1761073210618,0.28098759,112220.0,112200.0,0.31643311]
[1761073210930,0.28198759,112220.0,112200.0,0.31643311]
[1761073211137,0.00113091,112220.0,112210.0,0.19606095]
[1761073211363,0.00113091,112220.0,112210.0,0.28587996]
[1761073211610,0.00113091,112220.0,112210.0,0.26805624]
[1761073211948,0.00013091,112220.0,112210.0,0.26805624]
[1761073216119,0.17823723,112210.0,112200.0,0.13818]
[1761073216321,0.21389618,112210.0,112200.0,0.13818]
[1761073216499,0.55389618,112210.0,112200.0,0.13818]
[1761073217017,0.55493979,112210.0,112200.0,0.31643311]
[1761073217943,0.55493979,112210.0,112200.0,0.13818]
[1761073218087,0.55493979,112210.0,112200.0,0.31643311]
[1761073218730,0.55493979,112210.0,112200.0,0.13818]
[1761073219381,0.55493979,112210.0,112200.0,0.31643311]
[1761073219886,0.55493979,112210.0,112200.0,0.13818]
[1761073220298,0.55493979,112210.0,112200.0,0.31643311]
[1761073221737,0.55493979,112210.0,112200.0,0.13818]
[1761073222559,0.55493979,112210.0,112200.0,0.31643311]
[1761073222713,0.51928084,112210.0,112200.0,0.31643311]
[1761073222875,0.51928084,112210.0,112200.0,0.13818]
[1761073223553,0.51928084,112210.0,112200.0,0.31643311]
[1761073225817,0.51928084,112210.0,112200.0,0.13818]
[1761073226020,0.51928084,112210.0,112200.0,0.31643311]
[1761073226160,0.60030815,112210.0,112200.0,0.13818]
[1761073226366,0.60030815,112210.0,112200.0,0.31643311]
[1761073228319,0.42207092,112210.0,112200.0,0.31643311]
[1761073228895,0.60030815,112210.0,112200.0,0.31643311]
[1761073229288,0.42207092,112210.0,112200.0,0.31643311]
[1761073230501,0.60030815,112210.0,112200.0,0.31643311]
[1761073231187,0.42207092,112210.0,112200.0,0.31643311]
[1761073231596,0.00104361,112210.0,112200.0,0.31643311]
[1761073231808,0.34104361,112210.0,112200.0,0.815753]
[1761073232174,0.00104361,112210.0,112200.0,0.815753]
[1761073232688,0.00104361,112210.0,112200.0,0.84754776]
[1761073233544,0.00104361,112210.0,112200.0,0.84854776]
[1761073233792,0.00104361,112210.0,112200.0,0.84954776]
[1761073236802,0.00104361,112210.0,112200.0,0.44004688]
[1761073236984,0.00104361,112210.0,112200.0,0.84954776]
[1761073240776,0.00104361,112210.0,112200.0,0.84939368]
[1761073242695,0.34,112230.0,112220.0,0.17821851]
[1761073242909,0.51822999,112230.0,112210.0,0.19606095]
[1761073243110,0.51822999,112230.0,112220.0,0.17822135]
[1761073243975,0.52714026,112230.0,112220.0,0.17822135]
[1761073244322,0.52780864,112230.0,112220.0,0.17822135]
[1761073246419,0.34066838,112230.0,112220.0,0.17822135]
[1761073246617,0.51887385,112230.0,112220.0,0.17822135]
[1761073247491,0.34066838,112230.0,112220.0,0.17822135]
[1761073247697,0.51887385,112230.0,112220.0,0.17822135]
[1761073247902,0.54753585,112230.0,112220.0,0.17822135]
[1761073250026,0.54753585,112230.0,112220.0,0.29082135]
[1761073250431,0.54753585,112230.0,112220.0,0.1126]
[1761073250591,0.17822135,112220.0,112210.0,0.11269091]
[1761073250789,0.59079707,112220.0,112210.0,0.00013091]
[1761073251394,0.6167272,112220.0,112210.0,0.00013091]
[1761073251792,0.70654621,112220.0,112210.0,0.00013091]
[1761073251996,3.76906986,112220.0,112210.0,0.00013091]
[1761073252234,3.7931709,112220.0,112210.0,0.00013091]
[1761073252656,3.82500737,112220.0,112210.0,0.00013091]
[1761073253561,0.51832663,112160.0,112150.0,0.1783282]
[1761073253743,0.6836108,112160.0,112150.0,0.26829413]
[1761073254253,0.6836108,112160.0,112150.0,0.08996593]
[1761073255414,0.6836108,112160.0,112150.0,0.00014692]
[1761073256771,0.45256,112160.0,112150.0,0.17847951]
[1761073256972,0.45256,112160.0,112150.0,0.19631276]
[1761073257198,0.51831669,112160.0,112150.0,0.19631276]
[1761073257380,0.63091669,112160.0,112150.0,0.19631276]
[1761073257596,0.51831669,112160.0,112150.0,0.19631276]
[1761073257806,0.71328109,112160.0,112150.0,0.19631276]
[1761073258386,0.60068109,112160.0,112150.0,0.19631276]
[1761073258613,0.71328109,112160.0,112150.0,0.19631276]
[1761073259009,0.60068109,112160.0,112150.0,0.19631276]
[1761073259209,0.71328109,112160.0,112150.0,0.19631276]
[1761073260252,0.71328109,112160.0,112150.0,0.01798017]
[1761073260590,0.71328109,112160.0,112150.0,0.19631276]
[1761073261585,0.01180813,112160.0,112150.0,0.60565956]
[1761073261783,0.01180813,112160.0,112150.0,0.67931762]
[1761073261937,0.1126,112170.0,112160.0,0.17830247]
[1761073262136,0.1126,112170.0,112160.0,0.58764927]
[1761073262334,0.4816885,112170.0,112160.0,0.58764927]
[1761073262551,0.02680938,112190.0,112180.0,0.17828489]
[1761073262755,0.30207267,112190.0,112170.0,0.19611683]
[1761073262961,0.17828489,112180.0,112170.0,0.19611683]
[1761073263159,0.34,112180.0,112170.0,0.19611683]
[1761073263428,0.1126,112180.0,112170.0,0.19611683]
[1761073263844,0.14280727,112180.0,112170.0,0.19611683]
[1761073266105,0.01120367,112190.0,112180.0,0.17828489]
[1761073266239,0.00070923,112210.0,112200.0,0.17825311]
[1761073266445,0.17894646,112210.0,112200.0,0.01782531]
[1761073266647,0.17894646,112210.0,112200.0,0.19607842]
[1761073266885,0.38768607,112210.0,112200.0,0.19607842]
[1761073267640,0.01218355,112210.0,112200.0,0.28589743]
[1761073267842,0.01218355,112210.0,112200.0,0.67741892]
[1761073268016,0.01218355,112210.0,112200.0,0.26807212]
[1761073269646,0.19042078,112210.0,112200.0,0.26807212]
[1761073269879,0.01218355,112210.0,112200.0,0.26807212]
[1761073270620,0.01218355,112210.0,112200.0,1.08676572]
[1761073270804,0.00070923,112210.0,112200.0,1.08676572]
[1761073272222,0.00070923,112210.0,112200.0,1.08776572]
[1761073273216,0.00070923,112210.0,112200.0,0.26907212]
[1761073273422,0.00070923,112210.0,112200.0,1.08776572]
[1761073275426,0.00070923,112210.0,112200.0,1.123948]
[1761073276637,0.00070923,112210.0,112200.0,1.122948]
[1761073276838,0.00070923,112210.0,112200.0,1.124948]
[1761073277925,0.00070923,112210.0,112200.0,1.125948]
[1761073278117,0.00070923,112210.0,112200.0,1.123948]
[1761073278515,0.00070923,112210.0,112200.0,0.3062544]
[1761073278743,0.51894646,112210.0,112200.0,0.09181901]
[1761073278940,0.57084111,112210.0,112200.0,0.002]
[1761073279796,0.57084111,112210.0,112200.0,0.001]
[1761073279968,0.57084111,112210.0,112190.0,0.29119949]
[1761073280172,0.57084111,112210.0,112190.0,0.38116542]
[1761073280432,0.17825311,112200.0,112190.0,0.38116542]
[1761073280635,0.57084111,112210.0,112190.0,0.38116542]
[1761073281205,0.57084111,112210.0,112200.0,0.001]
[1761073281812,0.57084111,112210.0,112190.0,0.38116542]
[1761073281966,0.57084111,112210.0,112200.0,0.17825311]
[1761073282169,0.57084111,112210.0,112190.0,0.38116542]
[1761073282571,0.17825311,112200.0,112190.0,0.38116542]
[1761073283550,0.23529024,112200.0,112190.0,0.38116542]
[1761073284562,0.23529024,112200.0,112190.0,0.79051222]
[1761073286408,0.17825311,112200.0,112190.0,0.79051222]
[1761073286641,0.5734418,112210.0,112190.0,0.79051222]
[1761073286800,0.52154715,112210.0,112190.0,0.79051222]
[1761073287171,0.17825311,112200.0,112190.0,0.61224705]
[1761073287373,0.17825311,112200.0,112190.0,0.79051605]
[1761073287575,0.24823314,112200.0,112190.0,0.79051605]
[1761073288907,0.24823314,112200.0,112190.0,0.38116925]
[1761073289108,0.24823314,112200.0,112190.0,0.79051605]
[1761073289516,0.17825311,112200.0,112190.0,0.79051605]
[1761073290180,0.17825311,112200.0,112190.0,0.61224705]
[1761073290518,0.51825311,112200.0,112190.0,0.11308124]
[1761073292563,0.51825311,112200.0,112190.0,0.00048124]
[1761073294157,0.59948914,112200.0,112190.0,0.00048124]
[1761073296888,0.59948914,112200.0,112190.0,0.17875024]
[1761073297132,0.51825311,112200.0,112190.0,0.17875024]
[1761073298361,0.34,112200.0,112190.0,0.58809704]
[1761073298548,0.51825311,112200.0,112190.0,0.58809704]
[1761073299206,0.34330992,112210.0,112200.0,0.17825311]
[1761073299438,0.52154715,112210.0,112200.0,0.19607842]
[1761073300006,0.60367119,112210.0,112200.0,0.17825311]
[1761073301972,0.60367119,112210.0,112190.0,0.67791605]
[1761073302136,0.42543396,112210.0,112200.0,0.17825311]
[1761073302743,0.52154715,112210.0,112200.0,0.19607842]
[1761073305260,0.52154715,112210.0,112200.0,0.01782531]
[1761073305463,0.52154715,112210.0,112190.0,0.26856925]
[1761073305666,0.52154715,112210.0,112200.0,0.17825311]
[1761073307136,0.52154715,112210.0,112190.0,0.26856925]
[1761073307297,0.60367119,112210.0,112190.0,0.26856925]
[1761073308029,0.60367119,112210.0,112200.0,0.17825311]
[1761073309111,0.52154715,112210.0,112200.0,0.17825311]
[1761073312597,0.52154715,112210.0,112190.0,0.26856925]
[1761073312817,0.52154715,112210.0,112200.0,0.17825311]
[1761073315072,0.52154715,112210.0,112190.0,0.26856925]
[1761073315317,0.17825311,112200.0,112190.0,0.26856925]
[1761073315478,0.24823314,112200.0,112190.0,0.26856925]
[1761073316382,0.06998003,112200.0,112190.0,0.26856925]
[1761073316809,0.52154715,112210.0,112200.0,0.17825311]
[1761073321819,0.52154715,112210.0,112190.0,0.26856925]
[1761073322214,0.52154715,112210.0,112200.0,0.17825311]
[1761073323342,0.52154715,112210.0,112190.0,0.26856925]
[1761073323749,0.52154715,112210.0,112200.0,0.17825311]
[1761073323950,0.60366719,112210.0,112190.0,0.26856925]
[1761073325122,0.51825311,112200.0,112190.0,0.00048124]
[1761073325537,0.63077311,112200.0,112190.0,0.00048124]
[1761073325758,0.65003514,112200.0,112190.0,0.00048124]
[1761073327361,0.76578428,112200.0,112190.0,0.00048124]
[1761073327507,0.87955693,112200.0,112190.0,0.00048124]
[1761073327711,0.9058983,112200.0,112190.0,0.00048124]
[1761073328575,0.9078983,112200.0,112190.0,0.00048124]
[1761073328776,0.9068983,112200.0,112190.0,0.00048124]
[1761073328980,0.88055693,112200.0,112190.0,0.00048124]
[1761073329178,0.83067316,112200.0,112190.0,0.00048124]
[1761073329396,0.83167316,112200.0,112190.0,0.00048124]
[1761073330502,0.71915316,112200.0,112190.0,0.00048124]
[1761073330689,0.85848193,112200.0,112190.0,0.00048124]
[1761073331570,0.74596193,112200.0,112190.0,0.00048124]
[1761073331750,0.85848193,112200.0,112190.0,0.00048124]
[1761073334368,3.90300453,112200.0,112190.0,0.00048124]
[1761073334570,3.92695817,112200.0,112190.0,0.00048124]
[1761073334907,3.88441206,112200.0,112190.0,0.00048124]
[1761073336325,3.94693571,112200.0,112190.0,0.00048124]
[1761073338644,0.17831669,112160.0,112140.0,0.18721019]
[1761073338911,0.17831669,112160.0,112150.0,0.17833259]
[1761073338912,0.19614836,112160.0,112150.0,0.17833259]
[1761073339378,0.19614836,112160.0,112150.0,0.17967049]
[1761073340011,0.01783167,112160.0,112150.0,0.17967049]
[1761073340192,0.19614836,112160.0,112150.0,0.17967049]
[1761073340436,0.19614836,112160.0,112150.0,0.18067049]
[1761073340846,0.20673477,112160.0,112150.0,0.18067049]
[1761073341230,0.20673477,112160.0,112150.0,0.18167049]
[1761073341782,0.01058641,112160.0,112150.0,0.18167049]
[1761073341983,0.01058641,112160.0,112150.0,0.19950374]
[1761073342189,0.17832769,112170.0,112150.0,0.19950374]
[1761073342437,0.17832769,112170.0,112150.0,0.19816584]
[1761073342652,0.51832769,112170.0,112160.0,0.00100334]
[1761073342862,0.60281629,112170.0,112160.0,0.00100334]
[1761073343735,0.61360797,112170.0,112160.0,0.00100334]
[1761073345846,0.35079168,112170.0,112160.0,0.17932003]
[1761073346064,0.52909247,112170.0,112160.0,0.17932003]
[1761073347812,0.01079168,112170.0,112160.0,0.17932003]
[1761073348042,0.01079168,112170.0,112160.0,0.60658928]
[1761073348263,0.1782853,112180.0,112160.0,0.17932003]
[1761073348470,0.01081375,112170.0,112160.0,0.19715169]
[1761073348635,0.22876879,112180.0,112170.0,0.17830079]
[1761073349207,0.22876838,112180.0,112170.0,0.17830079]
[1761073349784,0.05048349,112180.0,112170.0,0.19613086]
[1761073349968,0.22876838,112180.0,112170.0,0.19613086]
[1761073351223,0.23957349,112180.0,112170.0,0.19613086]
[1761073352205,0.0612886,112180.0,112170.0,0.19613086]
[1761073352808,0.0612886,112180.0,112170.0,0.19703086]
[1761073353342,0.23957349,112180.0,112170.0,0.19703086]
[1761073353743,0.0612886,112180.0,112170.0,0.19769969]
[1761073353962,0.23957349,112180.0,112170.0,0.19769969]
[1761073354394,0.0612886,112180.0,112170.0,0.19769969]
[1761073354762,0.23957349,112180.0,112170.0,0.19769969]
[1761073354964,0.0612886,112180.0,112170.0,0.19769969]
[1761073355358,0.01080511,112180.0,112170.0,0.79164622]
[1761073355564,0.34,112190.0,112180.0,0.17828489]
[1761073355785,0.518269,112190.0,112180.0,0.17828489]